fUSD/lending_fUSD_20240426
["ID","MTS","AMOUNT","RATE_DAILY","PERIOD"]
[323598749,1714102254219,-500.0,0.0001178,2]
[323598750,1714102254228,-500.0,0.0001178,2]
[323598751,1714102254238,-500.0,0.0001178,2]
[323598752,1714102254249,-500.0,0.0001178,2]
[323598753,1714102254260,-642.73,0.0001178,2]
[323598754,1714102254270,-581.56,0.0001178,2]
[323598755,1714102254279,-439.88866934,0.0001178,2]
[323598756,1714102254288,-500.0,0.0001178,2]
[323598757,1714102254299,-500.0,0.0001178,2]
[323598758,1714102254308,-500.0,0.0001178,2]
[323598759,1714102254317,-500.0,0.0001178,2]
[323598760,1714102254327,-500.0,0.0001178,2]
[323598761,1714102254337,-500.0,0.0001178,2]
[323598762,1714102254347,-500.0,0.0001178,2]
[323598763,1714102254356,-500.0,0.0001178,2]
[323598764,1714102254365,-500.0,0.0001178,2]
[323598765,1714102254376,-500.0,0.0001178,2]
[323598766,1714102254386,-542.82,0.0001178,2]
[323598767,1714102254397,-500.0,0.0001178,2]
[323598768,1714102254407,-500.0,0.0001178,2]
[323598769,1714102254417,-500.0,0.0001178,2]
[323598770,1714102254428,-500.0,0.0001178,2]
[323598771,1714102254439,-500.0,0.0001178,2]
[323598772,1714102254451,-500.0,0.0001178,2]
[323598773,1714102254659,-843.19,0.0001178,2]
[323598774,1714102254673,-500.0,0.0001178,2]
[323598775,1714102254682,-500.0,0.0001178,2]
[323598776,1714102254691,-563.45198266,0.0001178,2]
[323598777,1714102254701,-500.0,0.0001178,2]
[323598778,1714102254711,-500.0,0.0001178,2]
[323598779,1714102254722,-577.73,0.0001178,2]
[323598780,1714102254731,-500.0,0.0001178,2]
[323598781,1714102254740,-616.92251948,0.0001178,2]
[323598782,1714102254750,-500.0,0.0001178,2]
[323598783,1714102254760,-500.0,0.0001178,2]
[323598784,1714102254771,-500.0,0.0001178,2]
[323598785,1714102254781,-500.0,0.0001178,2]
[323598786,1714102254790,-616.75,0.0001178,2]
[323598787,1714102254800,-500.0,0.0001178,2]
[323598788,1714102254810,-500.0,0.0001178,2]
[323598789,1714102254820,-500.0,0.0001178,2]
[323598790,1714102254830,-500.0,0.0001178,2]
[323598791,1714102254839,-500.0,0.0001178,2]
[323598792,1714102254849,-568.73,0.0001178,2]
[323598793,1714102254858,-500.0,0.0001178,2]
[323598794,1714102254867,-787.08,0.0001178,2]
[323598795,1714102254877,-500.0,0.0001178,2]
[323598796,1714102254887,-599.64,0.0001178,2]
[323598797,1714102254897,-504.23,0.0001178,2]
[323598798,1714102254906,-500.0,0.0001178,2]
[323598799,1714102254915,-856.13,0.0001178,2]
[323598800,1714102254925,-627.1585517,0.0001178,2]
[323598801,1714102254935,-639.71,0.0001178,2]
[323598802,1714102254944,-261.14,0.0001178,2]
[323598803,1714102254954,-500.0,0.0001178,2]
[323598804,1714102254963,-500.0,0.0001178,2]
[323598805,1714102254974,-500.0,0.0001178,2]
[323598806,1714102254985,-500.0,0.0001178,2]
[323598807,1714102254994,-500.0,0.0001178,2]
[323598808,1714102255004,-500.0,0.0001178,2]
[323598809,1714102255014,-500.0,0.0001178,2]
[323598810,1714102255023,-500.0,0.0001178,2]
[323598811,1714102255032,-500.0,0.0001178,2]
[323598812,1714102255042,-500.0,0.0001178,2]
[323598813,1714102255054,-500.0,0.0001178,2]
[323598814,1714102255065,-500.0,0.0001178,2]
[323598815,1714102255075,-639.28,0.0001178,2]
[323598816,1714102255086,-500.0,0.0001178,2]
[323598817,1714102255095,-500.0,0.0001178,2]
[323598818,1714102255104,-500.0,0.0001178,2]
[323598819,1714102255114,-500.0,0.0001178,2]
[323598820,1714102255123,-500.0,0.0001178,2]
[323598821,1714102255132,-500.0,0.0001178,2]
[323598822,1714102255141,-500.0,0.0001178,2]
[323598823,1714102255150,-500.0,0.0001178,2]
[323598824,1714102255161,-500.0,0.0001178,2]
[323598825,1714102255169,-500.0,0.0001178,2]
[323598826,1714102255179,-500.0,0.0001178,2]
[323598827,1714102255188,-626.08,0.0001178,2]
[323598828,1714102255198,-500.0,0.0001178,2]
[323598829,1714102255208,-612.63492554,0.0001178,2]
[323598830,1714102255217,-500.0,0.0001178,2]
[323598831,1714102255227,-500.0,0.0001178,2]
[323598832,1714102255237,-500.0,0.0001178,2]
[323598833,1714102255248,-500.0,0.0001178,2]
[323598834,1714102255259,-500.0,0.0001178,2]
[323598835,1714102255269,-500.0,0.0001178,2]
[323598836,1714102255277,-500.0,0.0001178,2]
[323598837,1714102255286,-500.0,0.0001178,2]
[323598838,1714102255295,-500.0,0.0001178,2]
[323598839,1714102255305,-500.0,0.0001178,2]
[323598840,1714102255314,-500.0,0.0001178,2]
[323598841,1714102255325,-500.0,0.0001178,2]
[323598842,1714102255334,-500.0,0.0001178,2]
[323598843,1714102255344,-500.0,0.0001178,2]
[323598844,1714102255353,-500.0,0.0001178,2]
[323598845,1714102255363,-541.18,0.0001178,2]
[323598846,1714102255372,-500.0,0.0001178,2]
[323598847,1714102255381,-500.0,0.0001178,2]
[323598848,1714102255391,-500.0,0.0001178,2]
[323598849,1714102255400,-500.0,0.0001178,2]
[323598850,1714102255409,-500.0,0.0001178,2]
[323598851,1714102255419,-500.0,0.0001178,2]
[323598852,1714102255429,-500.0,0.0001178,2]
[323598853,1714102255438,-500.0,0.0001178,2]
[323598854,1714102255447,-500.0,0.0001178,2]
[323598855,1714102255456,-500.0,0.0001178,2]
[323598856,1714102255465,-597.86,0.0001178,2]
[323598857,1714102255475,-862.75,0.0001178,2]
[323598858,1714102255484,-500.0,0.0001178,2]
[323598859,1714102255494,-500.0,0.0001178,2]
[323598860,1714102255503,-782.82,0.0001178,2]
[323598861,1714102255512,-500.0,0.0001178,2]
[323598862,1714102255521,-500.0,0.0001178,2]
[323598863,1714102255531,-500.0,0.0001178,2]
[323598864,1714102255540,-500.0,0.0001178,2]
[323598865,1714102255551,-500.0,0.0001178,2]
[323598866,1714102255562,-581.29,0.0001178,2]
[323598867,1714102255572,-441.4390013,0.0001178,2]
[323598868,1714102255581,-500.0,0.0001178,2]
[323598869,1714102255591,-500.0,0.0001178,2]
[323598870,1714102255601,-500.0,0.0001178,2]
[323598871,1714102255611,-500.0,0.0001178,2]
[323598872,1714102255621,-500.0,0.0001178,2]
[323598873,1714102255631,-587.38,0.0001178,2]
[323598874,1714102255642,-500.0,0.0001178,2]
[323598875,1714102255653,-1036.85,0.0001178,2]
[323598876,1714102255663,-500.0,0.0001178,2]
[323598877,1714102255673,-500.0,0.0001178,2]
[323598878,1714102255682,-500.0,0.0001178,2]
[323598879,1714102255693,-500.0,0.0001178,2]
[323598880,1714102255703,-500.0,0.0001178,2]
[323598881,1714102255713,-500.0,0.0001178,2]
[323598882,1714102255722,-2910.43,0.0001178,2]
[323598883,1714102255731,-500.0,0.0001178,2]
[323598884,1714102255741,-652.6,0.0001178,2]
[323598885,1714102255750,-512.24,0.0001178,2]
[323598886,1714102255760,-651.6,0.0001178,2]
[323598887,1714102255769,-745.15,0.0001178,2]
[323598888,1714102255779,-500.0,0.0001178,2]
[323598889,1714102255789,-500.0,0.0001178,2]
[323598890,1714102255799,-620.66,0.0001178,2]
[323598891,1714102255808,-500.0,0.0001178,2]
[323598892,1714102255818,-4100.53,0.0001178,2]
[323598893,1714102255827,-500.0,0.0001178,2]
[323598894,1714102255837,-629.07,0.0001178,2]
[323598895,1714102255846,-500.0,0.0001178,2]
[323598896,1714102255856,-1497.52,0.0001178,2]
[323598897,1714102255865,-500.0,0.0001178,2]
[323598898,1714102255875,-1894.71,0.0001178,2]
[323598899,1714102255885,-500.0,0.0001178,2]
[323598900,1714102255894,-500.0,0.0001178,2]
[323598901,1714102255903,-2267.21,0.0001178,2]
[323598902,1714102255912,-500.0,0.0001178,2]
[323598903,1714102255922,-500.0,0.0001178,2]
[323598904,1714102255931,-500.0,0.0001178,2]
[323598905,1714102255941,-502.08,0.0001178,2]
[323598906,1714102255950,-500.0,0.0001178,2]
[323598907,1714102255959,-1120.56,0.0001178,2]
[323598908,1714102255969,-1779.92,0.0001178,2]
[323598909,1714102255978,-500.0,0.0001178,2]
[323598910,1714102255987,-617.38938163,0.0001178,2]
[323598911,1714102255997,-500.0,0.0001178,2]
[323598912,1714102256006,-500.0,0.0001178,2]
[323598913,1714102256016,-5674.12,0.0001178,2]
[323598914,1714102256025,-583.18,0.0001178,2]
[323598915,1714102256034,-500.0,0.0001178,2]
[323598916,1714102256043,-773.03,0.0001178,2]
[323598917,1714102256054,-1065.24,0.0001178,2]
[323598918,1714102256063,-500.0,0.0001178,2]
[323598919,1714102256073,-591.03,0.0001178,2]
[323598920,1714102256083,-767.15,0.0001178,2]
[323598921,1714102256092,-500.0,0.0001178,2]
[323598922,1714102256101,-829.11,0.0001178,2]
[323598923,1714102256111,-500.0,0.0001178,2]
[323598924,1714102256121,-500.0,0.0001178,2]
[323598925,1714102256130,-436.89603447,0.0001178,2]
[323598926,1714102256140,-500.0,0.0001178,2]
[323598927,1714102256149,-912.84,0.0001178,2]
[323598928,1714102256160,-500.0,0.0001178,2]
[323598929,1714102256170,-500.0,0.0001178,2]
[323598930,1714102256183,-500.0,0.0001178,2]
[323598931,1714102256194,-500.0,0.0001178,2]
[323598932,1714102256205,-500.0,0.0001178,2]
[323598933,1714102256215,-1195.58,0.0001178,2]
[323598934,1714102256225,-500.0,0.0001178,2]
[323598935,1714102256235,-576.48,0.0001178,2]
[323598936,1714102256245,-500.0,0.0001178,2]
[323598937,1714102256255,-1092.73,0.0001178,2]
[323598938,1714102256265,-672.62,0.0001178,2]
[323598939,1714102256275,-500.0,0.0001178,2]
[323598940,1714102256285,-500.0,0.0001178,2]
[323598941,1714102256295,-500.0,0.0001178,2]
[323598942,1714102256305,-2976.79,0.0001178,2]
[323598943,1714102256315,-704.01,0.0001178,2]
[323598944,1714102256326,-758.36,0.0001178,2]
[323598945,1714102256336,-676.52,0.0001178,2]
[323598946,1714102256345,-500.0,0.0001178,2]
[323598947,1714102256355,-1416.24,0.0001178,2]
[323598948,1714102256365,-1084.01,0.0001178,2]
[323598949,1714102256375,-150.0,0.0001178,2]
[323598950,1714102256384,-500.0,0.0001178,2]
[323598951,1714102256394,-2990.73,0.0001178,2]
[323598952,1714102256404,-913.42,0.0001178,2]
[323598953,1714102256413,-500.0,0.0001178,2]
[323598954,1714102256423,-2274.77,0.0001178,2]
[323598955,1714102256433,-500.0,0.0001178,2]
[323598956,1714102256442,-599.98,0.0001178,2]
[323598957,1714102256451,-500.0,0.0001178,2]
[323598958,1714102256461,-2246.66,0.0001178,2]
[323598959,1714102256470,-2242.86,0.0001178,2]
[323598960,1714102256479,-887.18,0.0001178,2]
[323598961,1714102256489,-676.38,0.0001178,2]
[323598962,1714102256499,-500.0,0.0001178,2]
[323598963,1714102256508,-2210.04,0.0001178,2]
[323598964,1714102256517,-913.91,0.0001178,2]
[323598965,1714102256527,-943.47,0.0001178,2]
[323598966,1714102256536,-1053.46,0.0001178,2]
[323598967,1714102256546,-500.0,0.0001178,2]
[323598968,1714102256557,-1051.54,0.0001178,2]
[323598969,1714102256568,-500.0,0.0001178,2]
[323598970,1714102256579,-500.0,0.0001178,2]
[323598971,1714102256589,-4132.75,0.0001178,2]
[323598972,1714102256599,-926.08,0.0001178,2]
[323598973,1714102256609,-621.58,0.0001178,2]
[323598974,1714102256618,-500.0,0.0001178,2]
[323598975,1714102256628,-414.89350115,0.0001178,2]
[323598976,1714102256638,-500.0,0.0001178,2]
[323598977,1714102256648,-638.83,0.0001178,2]
[323598978,1714102256657,-537.85,0.0001178,2]
[323598979,1714102256668,-1170.45,0.0001178,2]
[323598980,1714102256677,-500.0,0.0001178,2]
[323598981,1714102256687,-2102.7,0.0001178,2]
[323598982,1714102256697,-8935.91,0.0001178,2]
[323598983,1714102256706,-746.03,0.0001178,2]
[323598984,1714102256718,-500.0,0.0001178,2]
[323598985,1714102256727,-500.0,0.0001178,2]
[323598986,1714102256737,-500.0,0.0001178,2]
[323598987,1714102256746,-932.58,0.0001178,2]
[323598988,1714102256756,-500.0,0.0001178,2]
[323598989,1714102256765,-500.0,0.0001178,2]
[323598990,1714102256775,-634.87972605,0.0001178,2]
[323598991,1714102256784,-500.0,0.0001178,2]
[323598992,1714102256794,-500.0,0.0001178,2]
[323598993,1714102256805,-988.53,0.0001178,2]
[323598994,1714102256814,-10552.33,0.0001178,2]
[323598995,1714102256824,-452.26843798,0.0001178,2]
[323598996,1714102256833,-2681.41,0.0001178,2]
[323598997,1714102256843,-500.0,0.0001178,2]
[323598998,1714102256852,-700.15,0.0001178,2]
[323598999,1714102256861,-500.0,0.0001178,2]
[323599000,1714102256871,-1147.98,0.0001178,2]
[323599001,1714102256880,-763.39,0.0001178,2]
[323599002,1714102256890,-500.0,0.0001178,2]
[323599003,1714102256900,-500.0,0.0001178,2]
[323599004,1714102256909,-500.0,0.0001178,2]
[323599005,1714102256918,-500.0,0.0001178,2]
[323599006,1714102256928,-500.0,0.0001178,2]
[323599007,1714102256937,-500.0,0.0001178,2]
[323599008,1714102256946,-637.88046577,0.0001178,2]
[323599009,1714102256956,-407.90337192,0.0001178,2]
[323599010,1714102256965,-577.88,0.0001178,2]
[323599011,1714102256974,-376.33,0.00011781,2]
[323599012,1714102256984,-150.0,0.00011781,2]
[323599013,1714102256993,-302.01,0.00011781,2]
[323599014,1714102257003,-300.67,0.00011781,2]
[323599015,1714102257012,-419.25,0.00011781,2]
[323599016,1714102257022,-150.0,0.00011781,2]
[323599017,1714102257031,-150.0,0.00011781,2]
[323599018,1714102257041,-419.25,0.00011781,2]
[323599019,1714102257055,-150.0,0.00011781,2]
[323599020,1714102257065,-419.25,0.00011781,2]
[323599021,1714102257074,-45.15194501,0.00011781,2]
[323599022,1714102257105,-274.733615,0.00011781,2]
[323599023,1714102257208,-99.36443999,0.00011781,2]
[323599024,1714102257219,-247.44,0.00011781,2]
[323599025,1714102257229,-730.80311974,0.00011781,2]
[323599026,1714102257241,-150.0,0.00011785,2]
[323599027,1714102257252,-150.0,0.00011785,2]
[323599028,1714102257262,-150.0,0.00011788,2]
[323599029,1714102257271,-150.0,0.00011793,2]
[323599030,1714102257281,-924.0,0.00011793,2]
[323599031,1714102257291,-150.0,0.00011795,2]
[323599032,1714102257307,-150.0,0.00011797,2]
[323599033,1714102257317,-183.4409949,0.00011797,2]
[323599034,1714102257326,-150.0,0.000118,2]
[323599035,1714102257336,-150.0,0.00011805,2]
[323599036,1714102257346,-150.0,0.00011807,2]
[323599037,1714102257355,-150.0,0.00011809,2]
[323599038,1714102257364,-150.0,0.00011811,2]
[323599039,1714102257374,-150.0,0.00011811,2]
[323599040,1714102257384,-150.0,0.00011812,2]
[323599041,1714102257393,-9787.15203248,0.00011813,2]
[323599042,1714102257403,-150.0,0.00011817,2]
[323599043,1714102257412,-150.0,0.00011819,2]
[323599044,1714102257422,-301.27987718,0.00011821,2]
[323599045,1714102257431,-150.0,0.00011823,2]
[323599046,1714102257441,-1000.0,0.0001183,2]
[323599047,1714102257450,-150.0,0.00011831,2]
[323599048,1714102257459,-150.0,0.00011831,2]
[323599049,1714102257468,-150.0,0.00011831,2]
[323599050,1714102257478,-150.0,0.00011832,2]
[323599051,1714102257486,-150.0,0.00011832,2]
[323599052,1714102257495,-150.0,0.00011834,2]
[323599053,1714102257504,-150.0,0.00011836,2]
[323599054,1714102257513,-150.0,0.00011842,2]
[323599055,1714102257522,-150.0,0.00011842,2]
[323599056,1714102257531,-170.146029,0.00011851,2]
[323599057,1714102257540,-403.97612,0.00011851,2]
[323599058,1714102257551,-277.60269,0.00011851,2]
[323599059,1714102257560,-2945.882278,0.00011851,2]
[323599060,1714102257569,-376.647785,0.00011851,2]
[323599061,1714102257579,-211.509501,0.00011851,2]
[323599062,1714102257588,-200.0,0.00011851,2]
[323599063,1714102257597,-150.0,0.00011852,2]
[323599064,1714102257607,-151.25289426,0.00011852,2]
[323599065,1714102257616,-150.0,0.00011853,2]
[323599066,1714102257625,-1000.0,0.00011854,2]
[323599067,1714102257635,-500.0,0.00011854,2]
[323599068,1714102257645,-150.0,0.00011857,2]
[323599069,1714102257654,-150.0,0.00011857,2]
[323599070,1714102257664,-150.0,0.00011859,2]
[323599071,1714102257673,-150.0,0.00011859,2]
[323599072,1714102257682,-150.0,0.00011861,2]
[323599073,1714102257691,-150.0,0.00011862,2]
[323599074,1714102257700,-150.0,0.00011865,2]
[323599075,1714102257709,-150.0,0.00011869,2]
[323599076,1714102257718,-150.0,0.00011869,2]
[323599077,1714102257728,-150.0,0.00011869,2]
[323599078,1714102257737,-150.0,0.0001187,2]
[323599079,1714102257746,-150.0,0.00011874,2]
[323599080,1714102257755,-150.0,0.00011875,2]
[323599081,1714102257764,-150.0,0.00011877,2]
[323599082,1714102257775,-1000.0,0.00011879,2]
[323599083,1714102257785,-159.12994866,0.0001188,2]
[323599084,1714102257794,-150.0,0.0001188,2]
[323599085,1714102257807,-1500.0,0.0001188,2]
[323599086,1714102257817,-150.0,0.00011889,2]
[323599087,1714102257826,-250000.0,0.0001189,2]
[323599088,1714102257835,-150.0,0.00011897,2]
[323599089,1714102257844,-150.0,0.00011899,2]
[323599090,1714102257854,-21140.08502886,0.000119,2]
[323599091,1714102257863,-408.65291693,0.000119,2]
[323599092,1714102257873,-1759.0,0.000119,2]
[323599093,1714102257882,-150.0,0.000119,2]
[323599094,1714102257891,-3000.0,0.000119,2]
[323599095,1714102257901,-1010.0,0.000119,2]
[323599096,1714102257910,-1000.0,0.000119,2]
[323599097,1714102257919,-1000.0,0.00011903,2]
[323599098,1714102257929,-500.0,0.00011903,2]
[323599099,1714102257938,-150.0,0.00011903,2]
[323599100,1714102257948,-150.0,0.00011904,2]
[323599101,1714102257957,-150.0,0.00011908,2]
[323599102,1714102257967,-150.0,0.00011909,2]
[323599103,1714102257975,-150.0,0.00011913,2]
[323599104,1714102257985,-150.0,0.00011914,2]
[323599105,1714102257994,-150.0,0.00011917,2]
[323599106,1714102258003,-150.0,0.0001192,2]
[323599107,1714102258012,-150.0,0.00011929,2]
[323599108,1714102258022,-1500.0,0.00011931,2]
[323599109,1714102258031,-1000.0,0.0001194,2]
[323599110,1714102258040,-1052.1565,0.0001194,2]
[323599111,1714102258052,-9787.15203248,0.00011949,2]
[323599112,1714102258061,-169.94657607,0.00011954,2]
[323599113,1714102258070,-455.31210323,0.00011954,2]
[323599114,1714102258079,-807.0,0.00011965,2]
[323599115,1714102258089,-258.321,0.00011965,2]
[323599116,1714102258098,-1859.0,0.00011965,2]
[323599117,1714102258107,-467.756,0.00011965,2]
[323599118,1714102258116,-610.0,0.00011965,2]
[323599119,1714102258125,-213.005,0.00011965,2]
[323599120,1714102258134,-420.0,0.00011965,2]
[323599121,1714102258144,-2446.0,0.00011965,2]
[323599122,1714102258153,-3121.0,0.00011965,2]
[323599123,1714102258165,-1547.58,0.00011965,2]
[323599124,1714102258174,-153.519,0.00011965,2]
[323599125,1714102258183,-218.0,0.00011965,2]
[323599126,1714102258192,-1641.0,0.00011965,2]
[323599127,1714102258201,-444.375,0.00011965,2]
[323599128,1714102258212,-1140.0,0.00011965,2]
[323599129,1714102258221,-5731.0,0.00011965,2]
[323599130,1714102258231,-2297.0,0.00011965,2]
[323599131,1714102258242,-5913.864,0.00011965,2]
[323599132,1714102258251,-1003.74,0.00011965,2]
[323599133,1714102258260,-2713.887,0.00011965,2]
[323599134,1714102258270,-1394.0,0.00011965,2]
[323599135,1714102258280,-37702.0,0.00011965,2]
[323599136,1714102258289,-479.014,0.00011965,2]
[323599137,1714102258298,-1056.0,0.00011965,2]
[323599138,1714102258307,-1257.0,0.00011965,2]
[323599139,1714102258316,-150.0,0.00011968,2]
[323599140,1714102258326,-722.88362208,0.0001197,2]
[323599141,1714102258336,-413.76,0.0001198,2]
[323599142,1714102258346,-413.76,0.0001198,2]
[323599143,1714102258355,-910.54,0.0001198,2]
[323599144,1714102258365,-400.02,0.0001198,2]
[323599145,1714102258375,-910.54,0.0001198,2]
[323599146,1714102258385,-910.7,0.0001198,2]
[323599147,1714102258395,-1500.0,0.00011986,2]
[323599148,1714102258405,-9746.5780572,0.00011991,2]
[323599149,1714102258415,-3950.5168379,0.00011991,2]
[323599150,1714102258425,-2852.3644906,0.00011991,2]
[323599151,1714102258434,-3965.5600164,0.00011991,2]
[323599152,1714102258444,-5858.175194,0.00011999,2]
[323599153,1714102258454,-8871.236197,0.00011999,2]
[323599154,1714102258464,-1057.547509,0.00011999,2]
[323599155,1714102258473,-1388.013453,0.00011999,2]
[323599156,1714102258483,-2019.880602,0.00011999,2]
[323599157,1714102258493,-200.0,0.00011999,2]
[323599158,1714102258502,-16693.206178,0.00011999,2]
[323599159,1714102258512,-403.97612,0.00011999,2]
[323599160,1714102258523,-277.60269,0.00011999,2]
[323599161,1714102258534,-2945.882278,0.00011999,2]
[323599162,1714102258544,-376.647785,0.00011999,2]
[323599163,1714102258554,-211.509501,0.00011999,2]
[323599164,1714102258563,-289.17019932,0.00011999,2]
[323599165,1714102258572,-2191.07869971,0.00011999,2]
[323599166,1714102258583,-1603.99772968,0.00012,3]
[323599167,1714102258593,-500.0,0.00012,2]
[323599168,1714102258602,-3071.20810051,0.00012,2]
[323599169,1714102258612,-11416.92232108,0.00012,2]
[323599170,1714102258621,-5000.0,0.00012,2]
[323599171,1714102258630,-2750.0,0.00012,3]
[323599172,1714102258642,-223.0,0.00012,2]
[323599173,1714102258652,-352.0,0.00012,2]
[323599174,1714102258661,-3983.2821,0.00012,2]
[323599175,1714102258671,-167.75,0.00012033,2]
[323599176,1714102258680,-51100.3902484,0.00012044,2]
[323599177,1714102258689,-2961.38067989,0.00012044,2]
[323599178,1714102258700,-10114.3412563,0.00012046,2]
[323599179,1714102258710,-4099.5798939,0.00012046,2]
[323599180,1714102258719,-2959.9914632,0.00012046,2]
[323599181,1714102258729,-4115.1906898,0.00012046,2]
[323599182,1714102258738,-177.86069209,0.00012051,2]
[323599183,1714102258747,-404.82688614,0.00012051,2]
[323599184,1714102258757,-155.16452867,0.00012051,2]
[323599185,1714102258766,-223.55581744,0.00012051,2]
[323599186,1714102258776,-155.19737911,0.00012051,2]
[323599187,1714102258786,-475.1893211,0.00012051,2]
[323599188,1714102258795,-443.2251187,0.00012051,2]
[323599189,1714102258808,-2452.17258259,0.00012051,2]
[323599190,1714102258817,-715.73938881,0.00012051,2]
[323599191,1714102258827,-665.63199089,0.00012051,2]
[323599192,1714102258836,-2115.65265172,0.00012051,2]
[323599193,1714102258846,-156.32772729,0.00012051,2]
[323599194,1714102258856,-2001.57823919,0.00012051,2]
[323599195,1714102258866,-158.10933987,0.00012051,2]
[323599196,1714102258875,-232.53197315,0.00012051,2]
[323599197,1714102258884,-219.37505023,0.00012052,2]
[323599198,1714102258894,-6560.35529869,0.00012052,2]
[323599199,1714102258904,-500.0,0.00012054,2]
[323599200,1714102258913,-213.27795166,0.00012054,2]
[323599201,1714102258922,-407.89685373,0.00012054,2]
[323599202,1714102258932,-500.0,0.00012054,2]
[323599203,1714102258941,-500.0,0.00012054,2]
[323599204,1714102258951,-500.0,0.00012054,2]
[323599205,1714102258960,-500.0,0.00012054,2]
[323599206,1714102258969,-363.18325956,0.00012054,2]
[323599207,1714102258978,-500.0,0.00012054,2]
[323599208,1714102258988,-500.0,0.00012054,2]
[323599209,1714102258998,-500.0,0.00012054,2]
[323599210,1714102259007,-742.26,0.00012054,2]
[323599211,1714102259017,-526.87,0.00012054,2]
[323599212,1714102259026,-500.0,0.00012054,2]
[323599213,1714102259035,-1277.29,0.00012054,2]
[323599214,1714102259045,-455.3481939,0.00012054,2]
[323599215,1714102259058,-516.20705235,0.00012054,2]
[323599216,1714102259068,-500.0,0.00012054,2]
[323599217,1714102259078,-500.0,0.00012054,2]
[323599218,1714102259087,-500.0,0.00012054,2]
[323599219,1714102259097,-411.3227412,0.00012054,2]
[323599220,1714102259107,-500.0,0.00012054,2]
[323599221,1714102259116,-500.0,0.00012054,2]
[323599222,1714102259126,-500.0,0.00012054,2]
[323599223,1714102259136,-500.0,0.00012054,2]
[323599224,1714102259146,-500.0,0.00012054,2]
[323599225,1714102259155,-547.35,0.00012054,2]
[323599226,1714102259167,-500.0,0.00012054,2]
[323599227,1714102259176,-500.0,0.00012054,2]
[323599228,1714102259186,-500.0,0.00012054,2]
[323599229,1714102259195,-500.0,0.00012054,2]
[323599230,1714102259205,-500.0,0.00012054,2]
[323599231,1714102259214,-687.33,0.00012054,2]
[323599232,1714102259223,-500.0,0.00012054,2]
[323599233,1714102259234,-387.39039167,0.00012054,2]
[323599234,1714102259244,-500.0,0.00012054,2]
[323599235,1714102259254,-586.85,0.00012054,2]
[323599236,1714102259263,-500.0,0.00012054,2]
[323599237,1714102259272,-500.0,0.00012054,2]
[323599238,1714102259282,-500.0,0.00012054,2]
[323599239,1714102259291,-500.0,0.00012054,2]
[323599240,1714102259301,-500.0,0.00012054,2]
[323599241,1714102259310,-500.0,0.00012054,2]
[323599242,1714102259320,-500.0,0.00012054,2]
[323599243,1714102259330,-500.0,0.00012054,2]
[323599244,1714102259339,-500.0,0.00012054,2]
[323599245,1714102259348,-574.62,0.00012054,2]
[323599246,1714102259357,-500.0,0.00012054,2]
[323599247,1714102259367,-588.27,0.00012054,2]
[323599248,1714102259376,-500.0,0.00012054,2]